[Event "EYCC Open-U18 2019"]
[Site "Bratislava"]
[Date "2019.08.09"]
[Round "8.41"]
[White "Cordeiro, Joao Carlos Santos F"]
[Black "Stijve, Theo"]
[Result "0-1"]
[ECO "B47"]
[WhiteElo "1924"]
[BlackElo "2336"]
[Annotator "NA"]
[PlyCount "94"]
[EventDate "2019.08.02"]
[EventType "swiss"]
[EventCountry "SVK"]
[SourceTitle "playchess.com"]
[Source "ChessBase"]
[SourceQuality "1"]
[TimeControl "40/5400+30:1800+30"]

1. e4 {[%emt 0:00:00]} c5 {[%emt 0:00:03]} 2. Nf3 {[%emt 0:00:05]} Nc6 {[%emt 0:00:20]} 3. d4 {[%emt 0:00:25]} cxd4 4. Nxd4 {[%emt 0:00:06]} Qc7 {[%emt 0:00:14]} 5. Nc3 {[%emt 0:00:54]} e6 {[%emt 0:00:07]} 6. Be2 {[%emt 0:02:08]} a6 {[%emt 0:00:08]} 7. O-O {[%emt 0:01:29]} Nf6 {[%emt 0:00:08]} 8. Be3 {[%emt 0:01:11]} Bb4 {[%emt 0:00:08]} 9. Na4 {[%emt 0:10:11]} O-O {[%emt 0:02:44]} 10. Nxc6 {[%emt 0:01:16]} bxc6 {[%emt 0:00:08]} 11. Nb6 {[%emt 0:01:00]} Rb8 {[%emt 0:00:06]} 12. Nxc8 {[%emt 0:00:10]} Rfxc8 {[%emt 0:00:06]} 13. Bxa6 {[%emt 0:13:06]} Rf8 {[%emt 0:00:13]} 14. Bd3 {[%emt 0:04:44]} Bd6 {[%emt 0:01:49]} 15. g3 {[%emt 0:08:52]} Be5 {[%emt 0:01:48]} 16. Rb1 {[%emt 0:18:08]} Bxb2 {[%emt 0:03:22]} 17. Bf4 {[%emt 0:02:21]} Be5 {[%emt 0:04:21]} 18. Bxe5 {[%emt 0:02:06]} Qxe5 {[%emt 0:00:09]} 19. Rxb8 {[%emt 0:11:29]} Rxb8 {[%emt 0:02:36]} 20. Qa1 {[%emt 0:01:45]} Qc5 {[%emt 0:05:59]} 21. Rb1 {[%emt 0:02:28]} Rf8 {[%emt 0:04:01]} 22. h3 {[%emt 0:02:42]} h5 {[%emt 0:02:30]} 23. Kg2 {[%emt 0:03:31]} h4 {[%emt 0:07:31]} 24. Qb2 {[%emt 0:00:58]} hxg3 {[%emt 0:06:06]} 25. fxg3 {[%emt 0:00:19]} Qe3 {[%emt 0:00:45]} 26. Qc1 {[%emt 0:01:52]} Qa7 {[%emt 0:03:36]} 27. Qg5 {[%emt 0:07:22]} Qd4 {[%emt 0:06:44]} 28. Qf4 {[%emt 0:01:16]} e5 {[%emt 0:02:52]} 29. Qf2 {[%emt 0:01:00]} Qa4 {[%emt 0:00:26]} 30. Qe3 {[%emt 0:00:54]} Qxa2 {[%emt 0:02:21]} 31. Rf1 {[%emt 0:00:03]} Re8 {[%emt 0:05:05]} 32. Qg5 {[%emt 0:00:20]} Qe6 {[%emt 0:01:18]} 33. g4 {[%emt 0:01:13]} d5 {[%emt 0:01:16]} 34. Qe3 {[%emt 0:00:43]} Ra8 {[%emt 0:11:29]} 35. Re1 {[%emt 0:00:46]} Ra4 {[%emt 0:02:37]} 36. Qf3 {[%emt 0:00:30]} dxe4 {[%emt 0:02:09]} 37. Bxe4 {[%emt 0:00:11]} Nxe4 {[%emt 0:00:20]} 38. Rxe4 {[%emt 0:00:07]} Rxe4 {[%emt 0:00:08]} 39. Qxe4 {[%emt 0:00:04]} Qd5 {[%emt 0:00:07]} 40. Kf3 {[%emt 0:00:00]} f6 {[%emt 0:00:00]} 41. Ke3 {[%emt 0:02:48]} Qxe4+ {[%emt 0:02:05]} 42. Kxe4 {[%emt 0:00:03]} Kf7 {[%emt 0:00:07]} 43. h4 {[%emt 0:00:33]} g6 {[%emt 0:00:26]} 44. c4 {[%emt 0:01:34]} Ke6 {[%emt 0:00:10]} 45. g5 {[%emt 0:00:26]} f5+ {[%emt 0:00:36]} 46. Ke3 {[%emt 0:00:10]} f4+ {[%emt 0:00:23]} 47. Ke4 {[%emt 0:00:07]} c5 {[%emt 0:00:04]} 0-1

[Event "EYCC Open-U18 2019"]
[Site "Bratislava"]
[Date "2019.08.09"]
[Round "8.42"]
[White "Halfhide, Sebastian"]
[Black "Joensson, Jacob"]
[Result "1-0"]
[ECO "C05"]
[WhiteElo "2286"]
[BlackElo "1981"]
[Annotator "NA"]
[PlyCount "49"]
[EventDate "2019.08.02"]
[EventType "swiss"]
[EventCountry "SVK"]
[SourceTitle "playchess.com"]
[Source "ChessBase"]
[SourceQuality "1"]
[TimeControl "40/5400+30:1800+30"]

1. e4 {[%emt 0:00:00]} e6 {[%emt 0:00:00]} 2. d4 {[%emt 0:00:00]} d5 {[%emt 0:00:00]} 3. Nd2 {[%emt 0:02:22]} Nf6 {[%emt 0:00:00]} 4. e5 {[%emt 0:00:18]} Nfd7 {[%emt 0:00:00]} 5. Bd3 {[%emt 0:01:32]} c5 {[%emt 0:00:04]} 6. c3 {[%emt 0:00:04]} Nc6 {[%emt 0:00:07]} 7. Ngf3 {[%emt 0:00:34]} Qb6 {[%emt 0:12:29]} 8. O-O {[%emt 0:03:08]} cxd4 {[%emt 0:08:03]} 9. cxd4 {[%emt 0:00:09]} Nxd4 {[%emt 0:00:42]} 10. Nxd4 {[%emt 0:00:47]} Qxd4 {[%emt 0:00:06]} 11. Nf3 {[%emt 0:00:42]} Qb6 {[%emt 0:01:14]} 12. Qa4 {[%emt 0:01:37]} Qb4 {[%emt 0:07:32]} 13. Qc2 {[%emt 0:02:41]} Nb6 {[%emt 0:11:35]} 14. a3 {[%emt 0:13:10]} Qc5 {[%emt 0:05:38]} 15. Qe2 {[%emt 0:01:40]} Bd7 {[%emt 0:06:11]} 16. Bg5 {[%emt 0:13:10]} Qc7 {[%emt 0:12:04]} 17. Rac1 {[%emt 0:00:41]} Bc6 {[%emt 0:00:25]} 18. Nd4 {[%emt 0:03:07]} Be7 {[%emt 0:05:26]} 19. Nb5 {[%emt 0:13:40]} Qd7 {[%emt 0:01:17]} 20. Bxe7 {[%emt 0:00:43]} Kxe7 {[%emt 0:00:10]} 21. Qg4 {[%emt 0:10:54]} Kf8 {[%emt 0:04:45]} 22. Nxa7 {[%emt 0:01:13]} Nc8 {[%emt 0:03:13]} 23. Nxc8 {[%emt 0:01:23]} Rxc8 {[%emt 0:00:10]} 24. b4 {[%emt 0:01:23]} Ra8 {[%emt 0:02:28]} 25. b5 {[%emt 0:01:50]} 1-0

[Event "EYCC Open-U18 2019"]
[Site "Bratislava"]
[Date "2019.08.09"]
[Round "8.43"]
[White "Gray, Euan"]
[Black "Ghersinich, Enrico"]
[Result "1-0"]
[ECO "A58"]
[WhiteElo "2004"]
[BlackElo "2221"]
[Annotator "NA"]
[PlyCount "149"]
[EventDate "2019.08.02"]
[EventType "swiss"]
[EventCountry "SVK"]
[SourceTitle "playchess.com"]
[Source "ChessBase"]
[SourceQuality "1"]
[TimeControl "40/5400+30:1800+30"]

1. d4 {[%emt 0:00:00]} Nf6 {[%emt 0:00:00]} 2. c4 {[%emt 0:00:00]} c5 {[%emt 0:00:16]} 3. d5 {[%emt 0:00:00]} b5 {[%emt 0:00:05]} 4. cxb5 {[%emt 0:00:03]} a6 {[%emt 0:00:30]} 5. bxa6 {[%emt 0:00:24]} g6 {[%emt 0:00:11]} 6. Nc3 {[%emt 0:00:46]} Bg7 {[%emt 0:00:46]} 7. Nf3 {[%emt 0:00:17]} O-O {[%emt 0:00:11]} 8. a7 {[%emt 0:01:24]} Rxa7 {[%emt 0:01:07]} 9. e4 {[%emt 0:00:35]} e6 {[%emt 0:02:27]} 10. Be2 {[%emt 0:01:14]} exd5 {[%emt 0:00:25]} 11. exd5 {[%emt 0:00:06]} d6 {[%emt 0:00:16]} 12. O-O {[%emt 0:00:40]} Na6 {[%emt 0:01:55]} 13. Bf4 {[%emt 0:06:24]} Nc7 {[%emt 0:00:28]} 14. Bc4 {[%emt 0:05:22]} Ba6 {[%emt 0:04:42]} 15. Bxa6 {[%emt 0:04:27]} Rxa6 {[%emt 0:00:09]} 16. Qd2 {[%emt 0:07:10]} Qa8 {[%emt 0:04:25]} 17. Rfd1 {[%emt 0:03:27]} Rb8 {[%emt 0:00:51]} 18. h3 {[%emt 0:08:09]} Rxb2 {[%emt 0:10:10]} 19. Qxb2 {[%emt 0:09:34]} Ne4 {[%emt 0:00:31]} 20. Rac1 {[%emt 0:04:07]} Nxd5 {[%emt 0:01:31]} 21. Rxd5 {[%emt 0:03:01]} Nxc3 {[%emt 0:04:21]} 22. Rxc3 {[%emt 0:04:47]} Qxd5 {[%emt 0:00:54]} 23. Qb8+ {[%emt 0:02:27]} Bf8 {[%emt 0:00:07]} 24. Rd3 {[%emt 0:00:36]} Qxa2 {[%emt 0:05:52]} 25. Bxd6 {[%emt 0:01:47]} Ra8 {[%emt 0:00:26]} 26. Qb7 {[%emt 0:00:07]} c4 {[%emt 0:04:16]} 27. Rd1 {[%emt 0:03:04]} Qa4 {[%emt 0:19:47]} 28. Qd5 {[%emt 0:08:23]} Ra5 {[%emt 0:11:16]} 29. Qd4 {[%emt 0:00:20]} Bg7 {[%emt 0:00:05]} 30. Qd2 {[%emt 0:10:13]} c3 {[%emt 0:01:24]} 31. Qc1 {[%emt 0:00:35]} Bh6 {[%emt 0:03:37]} 32. Qb1 {[%emt 0:01:47]} Rb5 {[%emt 0:00:09]} 33. Qa1 {[%emt 0:00:11]} Qxa1 {[%emt 0:02:43]} 34. Rxa1 {[%emt 0:00:01]} Kg7 {[%emt 0:03:23]} 35. Be5+ {[%emt 0:00:24]} Kf8 {[%emt 0:02:26]} 36. Bxc3 {[%emt 0:00:18]} Rb7 {[%emt 0:00:04]} 37. Bd4 {[%emt 0:00:27]} Bf4 {[%emt 0:00:28]} 38. Ra8+ {[%emt 0:00:11]} Ke7 {[%emt 0:00:06]} 39. Ra7 {[%emt 0:00:05]} Rxa7 {[%emt 0:00:17]} 40. Bxa7 {[%emt 0:00:00]} h5 {[%emt 0:00:00]} 41. g3 {[%emt 0:00:14]} Bd6 {[%emt 0:01:17]} 42. Kf1 {[%emt 0:00:48]} Ba3 {[%emt 0:03:42]} 43. Ke2 {[%emt 0:00:21]} Ke6 {[%emt 0:00:07]} 44. Kd3 {[%emt 0:00:41]} Kd5 {[%emt 0:05:35]} 45. Be3 {[%emt 0:02:50]} Be7 {[%emt 0:02:36]} 46. Bd4 {[%emt 0:02:32]} Bd8 {[%emt 0:01:59]} 47. Nd2 {[%emt 0:02:09]} Ba5 {[%emt 0:03:17]} 48. Ne4 {[%emt 0:01:08]} Bd8 {[%emt 0:00:52]} 49. Nc3+ {[%emt 0:01:37]} Ke6 {[%emt 0:00:15]} 50. Ke4 {[%emt 0:01:21]} f5+ {[%emt 0:01:18]} 51. Kf3 {[%emt 0:00:17]} g5 {[%emt 0:00:35]} 52. g4 {[%emt 0:01:18]} fxg4+ {[%emt 0:01:09]} 53. hxg4 {[%emt 0:00:06]} hxg4+ {[%emt 0:00:03]} 54. Kxg4 {[%emt 0:00:11]} Be7 {[%emt 0:00:04]} 55. f3 {[%emt 0:00:18]} Bd8 {[%emt 0:00:20]} 56. Ne4 {[%emt 0:00:12]} Bc7 {[%emt 0:01:04]} 57. Nxg5+ {[%emt 0:00:23]} Ke7 {[%emt 0:00:25]} 58. Kf5 {[%emt 0:00:29]} Ba5 {[%emt 0:00:22]} 59. Ne4 {[%emt 0:00:21]} Bc7 {[%emt 0:00:49]} 60. Be5 {[%emt 0:00:26]} Bb6 {[%emt 0:00:02]} 61. Nc3 {[%emt 0:00:22]} Kf7 {[%emt 0:00:09]} 62. Nd5 {[%emt 0:00:15]} Bf2 {[%emt 0:01:06]} 63. Ke4 {[%emt 0:01:37]} Be1 {[%emt 0:02:27]} 64. f4 {[%emt 0:00:01]} Bd2 {[%emt 0:00:14]} 65. f5 {[%emt 0:00:07]} Bc1 {[%emt 0:00:08]} 66. Bf4 {[%emt 0:00:44]} Bb2 {[%emt 0:00:26]} 67. Ne3 {[%emt 0:00:30]} Bc3 {[%emt 0:01:43]} 68. Ng2 {[%emt 0:00:23]} Ba5 {[%emt 0:00:41]} 69. Nh4 {[%emt 0:00:18]} Be1 {[%emt 0:00:43]} 70. Nf3 {[%emt 0:00:04]} Bb4 {[%emt 0:00:05]} 71. Bg5 {[%emt 0:00:28]} Ba5 {[%emt 0:01:52]} 72. Ne5+ {[%emt 0:00:05]} Kf8 {[%emt 0:00:16]} 73. f6 {[%emt 0:00:20]} Bb4 {[%emt 0:00:37]} 74. Kf5 {[%emt 0:00:55]} Ke8 {[%emt 0:01:59]} 75. f7+ {[%emt 0:14:21] Kd8 Ke4+ Kd7} 1-0

[Event "EYCC Open-U18 2019"]
[Site "Bratislava"]
[Date "2019.08.09"]
[Round "8.44"]
[White "Pobor, Danilo"]
[Black "Johannsson, Birkir Isak"]
[Result "0-1"]
[ECO "D43"]
[WhiteElo "1996"]
[BlackElo "1988"]
[Annotator "NA"]
[PlyCount "70"]
[EventDate "2019.08.02"]
[EventType "swiss"]
[EventCountry "SVK"]
[SourceTitle "playchess.com"]
[Source "ChessBase"]
[SourceQuality "1"]
[TimeControl "40/5400+30:1800+30"]

1. d4 {[%emt 0:00:00]} d5 {[%emt 0:00:00]} 2. Nf3 {[%emt 0:00:00]} Nf6 {[%emt 0:00:00]} 3. c4 {[%emt 0:00:00]} c6 {[%emt 0:00:00]} 4. Nc3 {[%emt 0:00:00]} e6 {[%emt 0:00:00]} 5. Bf4 {[%emt 0:00:00]} dxc4 {[%emt 0:01:32]} 6. e3 {[%emt 0:05:45]} b5 {[%emt 0:03:34]} 7. a4 {[%emt 0:02:28]} Bb4 {[%emt 0:00:45]} 8. axb5 {[%emt 0:06:03]} cxb5 {[%emt 0:00:27]} 9. Bxb8 {[%emt 0:00:16]} Rxb8 {[%emt 0:00:01]} 10. Rxa7 {[%emt 0:00:16]} Qb6 {[%emt 0:04:44]} 11. Ra1 {[%emt 0:00:42]} Bb7 {[%emt 0:01:46]} 12. Be2 {[%emt 0:00:43]} O-O {[%emt 0:01:18]} 13. O-O {[%emt 0:00:18]} Rfc8 {[%emt 0:05:44]} 14. Ne5 {[%emt 0:06:22]} Bd6 {[%emt 0:10:32]} 15. Bf3 {[%emt 0:09:01]} Bxf3 {[%emt 0:03:33]} 16. Qxf3 {[%emt 0:01:04]} Qc7 {[%emt 0:06:38]} 17. Qg3 {[%emt 0:05:59]} b4 {[%emt 0:00:32]} 18. Ne2 {[%emt 0:06:36]} Ne4 {[%emt 0:03:53]} 19. Qg4 {[%emt 0:06:01]} Nd2 {[%emt 0:09:53]} 20. Rfd1 {[%emt 0:01:44]} Nb3 {[%emt 0:00:19]} 21. Ra6 {[%emt 0:00:54]} Bxe5 {[%emt 0:02:19]} 22. dxe5 {[%emt 0:00:03]} c3 {[%emt 0:02:04]} 23. bxc3 {[%emt 0:07:00]} bxc3 {[%emt 0:00:11]} 24. Rad6 {[%emt 0:09:13]} c2 {[%emt 0:01:08]} 25. R1d3 {[%emt 0:00:14]} c1=Q+ {[%emt 0:02:45]} 26. Nxc1 {[%emt 0:00:16]} Qxc1+ {[%emt 0:01:32]} 27. Rd1 {[%emt 0:00:08]} Qc2 {[%emt 0:02:20]} 28. Rd7 {[%emt 0:03:00]} Qg6 {[%emt 0:01:00]} 29. Qb4 {[%emt 0:00:30]} h6 {[%emt 0:00:38]} 30. Qe7 {[%emt 0:00:16]} Re8 {[%emt 0:00:44]} 31. Qa3 {[%emt 0:00:26]} Qc2 {[%emt 0:02:31]} 32. h3 {[%emt 0:00:55]} Qc5 {[%emt 0:01:25]} 33. Qa4 {[%emt 0:00:37]} Qxe5 {[%emt 0:01:12]} 34. Qa7 {[%emt 0:00:30]} Qf5 {[%emt 0:03:00]} 35. g4 {[%emt 0:00:23]} Qf3 {[%emt 0:02:56]} 0-1

[Event "EYCC Open-U18 2019"]
[Site "Bratislava"]
[Date "2019.08.09"]
[Round "8.45"]
[White "Durica, Adam"]
[Black "Sousa, Hugo Carneiro"]
[Result "1-0"]
[ECO "A05"]
[WhiteElo "1958"]
[BlackElo "2130"]
[Annotator "NA"]
[PlyCount "85"]
[EventDate "2019.08.02"]
[EventType "swiss"]
[EventCountry "SVK"]
[SourceTitle "playchess.com"]
[Source "ChessBase"]
[SourceQuality "1"]
[TimeControl "40/5400+30:1800+30"]

1. Nf3 {[%emt 0:00:00]} Nf6 {[%emt 0:00:00]} 2. b3 {[%emt 0:00:00]} e6 {[%emt 0:00:00]} 3. Bb2 {[%emt 0:00:00]} d5 {[%emt 0:00:03]} 4. c4 {[%emt 0:00:00]} Be7 {[%emt 0:00:13]} 5. e3 {[%emt 0:00:29]} O-O {[%emt 0:00:30]} 6. g3 {[%emt 0:00:20]} c5 {[%emt 0:00:48]} 7. Bg2 {[%emt 0:00:58]} Nc6 {[%emt 0:00:11]} 8. cxd5 {[%emt 0:00:34]} Nxd5 {[%emt 0:01:19]} 9. O-O {[%emt 0:00:23]} Bf6 {[%emt 0:04:09]} 10. d4 {[%emt 0:01:43]} cxd4 {[%emt 0:06:30]} 11. exd4 {[%emt 0:01:45]} Qb6 {[%emt 0:03:19]} 12. Na3 {[%emt 0:00:40]} a5 {[%emt 0:02:24]} 13. Nc4 {[%emt 0:02:16]} Qa7 {[%emt 0:02:17]} 14. Nfe5 {[%emt 0:03:11]} Rd8 {[%emt 0:05:18]} 15. Qh5 {[%emt 0:03:09]} g6 {[%emt 0:09:01]} 16. Qg4 {[%emt 0:00:18]} Nce7 {[%emt 0:09:38]} 17. h4 {[%emt 0:09:56]} h5 {[%emt 0:08:38]} 18. Qf3 {[%emt 0:01:41]} Kg7 {[%emt 0:03:39]} 19. Rad1 {[%emt 0:03:13]} Nf5 {[%emt 0:09:30]} 20. Ne3 {[%emt 0:03:12]} Ndxe3 {[%emt 0:06:54]} 21. fxe3 {[%emt 0:00:09]} Bxe5 {[%emt 0:03:39]} 22. dxe5 {[%emt 0:00:09]} Rxd1 {[%emt 0:01:39]} 23. Rxd1 {[%emt 0:00:02]} Qxe3+ {[%emt 0:00:17]} 24. Kh2 {[%emt 0:00:02]} a4 {[%emt 0:05:13]} 25. b4 {[%emt 0:07:59]} a3 {[%emt 0:02:55]} 26. Bc3 {[%emt 0:00:09]} b5 {[%emt 0:03:08]} 27. Rd8 {[%emt 0:05:44]} Rb8 {[%emt 0:03:20]} 28. Bd2 {[%emt 0:00:04]} Qxf3 {[%emt 0:03:04]} 29. Bxf3 {[%emt 0:00:10]} Ne7 {[%emt 0:04:12]} 30. Bg5 {[%emt 0:00:35]} Ng8 {[%emt 0:00:12]} 31. Bc6 {[%emt 0:00:58]} Bb7 {[%emt 0:01:09]} 32. Rxb8 {[%emt 0:00:16]} Bxc6 {[%emt 0:00:06]} 33. Bc1 {[%emt 0:01:14]} Bd5 {[%emt 0:00:37]} 34. Rxb5 {[%emt 0:00:15]} f6 {[%emt 0:00:43]} 35. exf6+ {[%emt 0:01:10]} Kxf6 {[%emt 0:00:38]} 36. Bxa3 {[%emt 0:00:05]} Bxa2 {[%emt 0:00:10]} 37. Bb2+ {[%emt 0:00:12]} Ke7 {[%emt 0:00:14]} 38. Rb7+ {[%emt 0:00:10]} Kd6 {[%emt 0:00:09]} 39. b5 {[%emt 0:01:02]} Nh6 {[%emt 0:00:30]} 40. Ba3+ {[%emt 0:00:00]} Ke5 {[%emt 0:00:00]} 41. b6 {[%emt 0:01:58]} Ng4+ {[%emt 0:00:46]} 42. Kg1 {[%emt 0:00:08]} Bd5 {[%emt 0:01:10]} 43. Rd7 {[%emt 0:00:12]} 1-0

[Event "EYCC Open-U18 2019"]
[Site "Bratislava"]
[Date "2019.08.09"]
[Round "8.46"]
[White "Bulockin, Martin"]
[Black "Baranciuc, Alexandr"]
[Result "1-0"]
[ECO "A45"]
[WhiteElo "2210"]
[BlackElo "1901"]
[Annotator "NA"]
[PlyCount "67"]
[EventDate "2019.08.02"]
[EventType "swiss"]
[EventCountry "SVK"]
[SourceTitle "playchess.com"]
[Source "ChessBase"]
[SourceQuality "1"]
[TimeControl "40/5400+30:1800+30"]

1. d4 {[%emt 0:01:13]} Nf6 {[%emt 0:00:00]} 2. Bf4 {[%emt 0:00:35]} c5 {[%emt 0:00:19]} 3. e3 {[%emt 0:00:33]} cxd4 {[%emt 0:00:08]} 4. exd4 {[%emt 0:00:13]} d5 {[%emt 0:00:12]} 5. c3 {[%emt 0:00:55]} Nc6 {[%emt 0:03:09]} 6. Nd2 {[%emt 0:00:19]} Bf5 {[%emt 0:03:07]} 7. Ngf3 {[%emt 0:02:11]} e6 {[%emt 0:00:42]} 8. Qb3 {[%emt 0:02:19]} Qc8 {[%emt 0:03:15]} 9. h3 {[%emt 0:03:50]} Be7 {[%emt 0:01:13]} 10. Be2 {[%emt 0:02:02]} O-O {[%emt 0:00:18]} 11. O-O {[%emt 0:00:08]} a6 {[%emt 0:02:16]} 12. Nh4 {[%emt 0:05:42]} Bg6 {[%emt 0:00:55]} 13. Nxg6 {[%emt 0:00:16]} hxg6 {[%emt 0:00:01]} 14. a4 {[%emt 0:04:00]} Na5 {[%emt 0:07:52]} 15. Qa2 {[%emt 0:05:29]} b5 {[%emt 0:05:35]} 16. Rfc1 {[%emt 0:09:36]} Qb7 {[%emt 0:05:30]} 17. b3 {[%emt 0:03:54]} Rfc8 {[%emt 0:02:05]} 18. Rab1 {[%emt 0:01:28]} Qd7 {[%emt 0:02:11]} 19. Bf3 {[%emt 0:06:25]} Nh5 {[%emt 0:09:40]} 20. Be3 {[%emt 0:01:45]} Ra7 {[%emt 0:16:18]} 21. Ra1 {[%emt 0:07:45]} Nc6 {[%emt 0:05:44]} 22. Qb1 {[%emt 0:05:07]} Bd6 {[%emt 0:04:23]} 23. Qd3 {[%emt 0:06:20]} Nf4 {[%emt 0:06:49]} 24. Qf1 {[%emt 0:00:48]} Qb7 {[%emt 0:01:56]} 25. c4 {[%emt 0:03:02]} b4 {[%emt 0:01:40]} 26. g3 {[%emt 0:02:02]} Nh5 {[%emt 0:01:55]} 27. cxd5 {[%emt 0:00:19]} exd5 {[%emt 0:00:05]} 28. Bxd5 {[%emt 0:00:27]} Raa8 {[%emt 0:02:07]} 29. Qg2 {[%emt 0:00:41]} Qe7 {[%emt 0:01:30]} 30. Nf1 {[%emt 0:03:24]} Nxd4 {[%emt 0:01:20]} 31. Bxd4 {[%emt 0:00:58]} Rxc1 {[%emt 0:00:22]} 32. Rxc1 {[%emt 0:00:01]} Rd8 {[%emt 0:00:10]} 33. Bb6 {[%emt 0:01:37]} Rd7 {[%emt 0:00:15]} 34. Bc6 {[%emt 0:00:43]} 1-0

[Event "EYCC Open-U18 2019"]
[Site "Bratislava"]
[Date "2019.08.09"]
[Round "8.47"]
[White "Toquero Gracia, Pau"]
[Black "Korjus, Onni"]
[Result "1-0"]
[ECO "C91"]
[WhiteElo "2080"]
[BlackElo "1848"]
[Annotator "NA"]
[PlyCount "63"]
[EventDate "2019.08.02"]
[EventType "swiss"]
[EventCountry "SVK"]
[SourceTitle "playchess.com"]
[Source "ChessBase"]
[SourceQuality "1"]
[TimeControl "40/5400+30:1800+30"]

1. e4 {[%emt 0:00:00]} e5 {[%emt 0:00:00]} 2. Nf3 {[%emt 0:00:00]} Nc6 {[%emt 0:00:00]} 3. Bb5 {[%emt 0:00:00]} a6 {[%emt 0:00:00]} 4. Ba4 {[%emt 0:00:09]} Nf6 {[%emt 0:00:07]} 5. O-O {[%emt 0:00:15]} Be7 {[%emt 0:00:10]} 6. Re1 {[%emt 0:00:44]} b5 {[%emt 0:00:07]} 7. Bb3 {[%emt 0:00:04]} d6 {[%emt 0:00:46]} 8. c3 {[%emt 0:00:09]} O-O {[%emt 0:00:08]} 9. d4 {[%emt 0:00:06]} exd4 {[%emt 0:07:47]} 10. Nxd4 {[%emt 0:00:46]} Nxd4 {[%emt 0:14:34]} 11. cxd4 {[%emt 0:00:35]} c5 {[%emt 0:00:12]} 12. Bg5 {[%emt 0:10:15]} Nd7 {[%emt 0:11:24]} 13. Bxe7 {[%emt 0:06:58]} Qxe7 {[%emt 0:00:09]} 14. d5 {[%emt 0:00:18]} Bb7 {[%emt 0:08:27]} 15. Nd2 {[%emt 0:05:22]} c4 {[%emt 0:05:41]} 16. Bc2 {[%emt 0:00:43]} Nc5 {[%emt 0:03:17]} 17. Nf3 {[%emt 0:01:55]} f6 {[%emt 0:04:43]} 18. Nd4 {[%emt 0:07:20]} g6 {[%emt 0:00:37]} 19. f4 {[%emt 0:04:32]} Bc8 {[%emt 0:07:31]} 20. b4 {[%emt 0:07:50]} cxb3 {[%emt 0:08:11]} 21. axb3 {[%emt 0:00:34]} Bd7 {[%emt 0:00:41]} 22. b4 {[%emt 0:02:55]} Na4 {[%emt 0:00:19]} 23. Bxa4 {[%emt 0:05:36]} bxa4 {[%emt 0:00:07]} 24. Nc6 {[%emt 0:00:05]} Qe8 {[%emt 0:04:27]} 25. Qxa4 {[%emt 0:00:43]} Bxc6 {[%emt 0:04:34]} 26. dxc6 {[%emt 0:01:07]} Rc8 {[%emt 0:00:27]} 27. Rac1 {[%emt 0:00:41]} Rf7 {[%emt 0:02:15]} 28. Qxa6 {[%emt 0:00:55]} Re7 {[%emt 0:00:39]} 29. Qc4+ {[%emt 0:00:57]} Kg7 {[%emt 0:00:29]} 30. b5 {[%emt 0:00:14]} Qd8 {[%emt 0:00:45]} 31. Qd4 {[%emt 0:00:57]} Rb8 {[%emt 0:00:48]} 32. b6 {[%emt 0:02:20]} 1-0

[Event "EYCC Open-U18 2019"]
[Site "Bratislava"]
[Date "2019.08.09"]
[Round "8.48"]
[White "Horak, Jan"]
[Black "Winkin, Pol"]
[Result "1-0"]
[ECO "C72"]
[WhiteElo "2020"]
[BlackElo "1840"]
[Annotator "NA"]
[PlyCount "79"]
[EventDate "2019.08.02"]
[EventType "swiss"]
[EventCountry "SVK"]
[SourceTitle "playchess.com"]
[Source "ChessBase"]
[SourceQuality "1"]
[TimeControl "40/5400+30:1800+30"]

1. e4 {[%emt 0:00:00]} e5 {[%emt 0:00:00]} 2. Nf3 {[%emt 0:00:00]} Nc6 {[%emt 0:00:00]} 3. Bb5 {[%emt 0:00:00]} a6 {[%emt 0:00:00]} 4. Ba4 {[%emt 0:00:01]} d6 {[%emt 0:00:01]} 5. O-O {[%emt 0:00:13]} Bd7 {[%emt 0:00:14]} 6. c3 {[%emt 0:00:24]} Nf6 {[%emt 0:00:20]} 7. Re1 {[%emt 0:00:09]} Be7 {[%emt 0:00:07]} 8. d4 {[%emt 0:00:08]} h6 {[%emt 0:00:26]} 9. Bc2 {[%emt 0:00:41]} O-O {[%emt 0:00:13]} 10. Nbd2 {[%emt 0:00:13]} Re8 {[%emt 0:00:19]} 11. Nf1 {[%emt 0:00:38]} Bf8 {[%emt 0:00:06]} 12. d5 {[%emt 0:02:27]} Ne7 {[%emt 0:03:21]} 13. Ng3 {[%emt 0:01:40]} c6 {[%emt 0:07:27]} 14. c4 {[%emt 0:03:06]} Ng6 {[%emt 0:06:21]} 15. h3 {[%emt 0:03:58]} b5 {[%emt 0:08:46]} 16. cxb5 {[%emt 0:04:33]} axb5 {[%emt 0:01:23]} 17. Be3 {[%emt 0:07:03]} Nf4 {[%emt 0:15:26]} 18. Qd2 {[%emt 0:10:22]} cxd5 {[%emt 0:03:47]} 19. Bxf4 {[%emt 0:00:31]} exf4 {[%emt 0:05:07]} 20. Qxf4 {[%emt 0:00:15]} dxe4 {[%emt 0:03:22]} 21. Nxe4 {[%emt 0:00:58]} Nxe4 {[%emt 0:01:05]} 22. Bxe4 {[%emt 0:00:15]} Ra7 {[%emt 0:03:54]} 23. Nd4 {[%emt 0:01:33]} d5 {[%emt 0:12:26]} 24. Bxd5 {[%emt 0:06:03]} Rxe1+ {[%emt 0:00:40]} 25. Rxe1 {[%emt 0:00:07]} Bxh3 {[%emt 0:00:21]} 26. Bb3 {[%emt 0:18:42]} g5 {[%emt 0:04:04]} 27. Nc6 {[%emt 0:01:36]} Qd7 {[%emt 0:01:43]} 28. Qe4 {[%emt 0:08:56]} Bf5 {[%emt 0:01:30]} 29. Qe3 {[%emt 0:03:26]} Rc7 {[%emt 0:01:43]} 30. Nd4 {[%emt 0:05:21]} Bg6 {[%emt 0:01:25]} 31. Nf3 {[%emt 0:03:47]} Bg7 {[%emt 0:05:47]} 32. Ne5 {[%emt 0:00:37]} Qd6 {[%emt 0:01:19]} 33. Nxg6 {[%emt 0:00:27]} Qxg6 {[%emt 0:00:12]} 34. Qe8+ {[%emt 0:01:05]} Kh7 {[%emt 0:00:13]} 35. Qxb5 {[%emt 0:00:55]} Bxb2 {[%emt 0:01:38]} 36. Bd5 {[%emt 0:00:18]} Qf6 {[%emt 0:00:24]} 37. g3 {[%emt 0:06:53]} Bd4 {[%emt 0:01:02]} 38. Re2 {[%emt 0:00:51]} Qd6 {[%emt 0:00:47]} 39. Qd3+ {[%emt 0:00:20]} Qg6 {[%emt 0:00:59]} 40. Be4 {[%emt 0:00:00]} 1-0